fUST/lending_fUST_20260127
["ID","MTS","AMOUNT","RATE_DAILY","PERIOD"]
[403707016,1769494239830,-209.40437684,0.00014749,2]
[403707017,1769494239840,-151.0,0.00014749,2]
[403707018,1769494239849,-217.15233878,0.00014749,2]
[403707019,1769494239859,-151.0,0.00014749,2]
[403707020,1769494239868,-225.18697532,0.00014749,2]
[403707021,1769494239878,-151.0,0.00014749,2]
[403707022,1769494239887,-233.51889341,0.00014749,2]
[403707023,1769494239897,-152.99083282,0.00014749,2]
[403707024,1769494239906,-242.15909246,0.00014749,2]
[403707025,1769494239915,-251.11897888,0.00014749,2]
[403707026,1769494239925,-260.4103811,0.00014749,2]
[403707027,1769494239934,-270.0455652,0.00014749,2]
[403707028,1769494239943,-151.0,0.00014749,2]
[403707029,1769494239953,-280.03725112,0.00014749,2]
[403707030,1769494239963,-151.0,0.00014749,2]
[403707031,1769494239972,-290.39862941,0.00014749,2]
[403707032,1769494239982,-301.14337871,0.00014749,2]
[403707033,1769494239991,-500.0,0.00014749,2]
[403707034,1769494240001,-500.0,0.00014749,2]
[403707035,1769494240010,-151.0,0.00014749,2]
[403707036,1769494240020,-500.0,0.00014749,2]
[403707038,1769494240180,-500.0,0.00014749,2]
[403707039,1769494240189,-500.0,0.00014749,2]
[403707040,1769494240199,-500.0,0.00014749,2]
[403707041,1769494240210,-500.0,0.00014749,2]
[403707042,1769494240219,-500.0,0.00014749,2]
[403707043,1769494240229,-500.0,0.00014749,2]
[403707044,1769494240238,-500.0,0.00014749,2]
[403707045,1769494240248,-500.0,0.00014749,2]
[403707046,1769494240257,-201.93286097,0.00014749,2]
[403707047,1769494240267,-500.0,0.00014749,2]
[403707048,1769494240276,-250.0,0.00014749,2]
[403707049,1769494240285,-250.0,0.00014749,2]
[403707050,1769494240294,-1347.42,0.00014772,2]
[403707052,1769494240303,-585.04,0.00014794,2]
[403707053,1769494240313,-336.07837269,0.00014795,2]
[403707054,1769494240322,-1500.0,0.00014795,2]
[403707055,1769494240331,-1500.0,0.00014795,2]
[403707056,1769494240341,-1500.0,0.00014795,2]
[403707057,1769494240350,-1000.0,0.00014916,2]
[403707058,1769494240359,-1000.0,0.00014916,2]
[403707059,1769494240368,-1000.0,0.00014916,2]
[403707060,1769494240378,-1000.0,0.00014916,2]
[403707061,1769494240387,-591.91529561,0.00014916,2]
[403707062,1769494240396,-160.0,0.000151,2]
[403707063,1769494240405,-2773.56790519,0.00015297,2]
[403707064,1769494240414,-553.64373807,0.00015297,2]
[403707066,1769494240424,-500.0,0.00015322,2]
[403707068,1769494240433,-500.0,0.00015342,2]
[403707070,1769494240443,-500.0,0.00015342,2]
[403707071,1769494240451,-349.71421088,0.00015342,2]
[403707072,1769494240460,-286.29214327,0.0001546,2]
[403707073,1769494240469,-1497.13,0.0001555,2]
[403707074,1769494240478,-5000.0,0.0001564,2]
[403707075,1769494240487,-1152.0,0.00015653,2]
[403707076,1769494240496,-150.0,0.00016,2]
[403707077,1769494240504,-160.0,0.000161,2]
[403707078,1769494240513,-250.0,0.00016438,2]
[403707079,1769494240521,-295.07967713,0.00016438,2]
[403707080,1769494240530,-179.0,0.00016676,2]
[403707081,1769494240539,-500.0,0.00016925,2]
[403707082,1769494240547,-500.0,0.00016925,2]
[403707083,1769494240556,-585.04,0.00016925,2]
[403707084,1769494240565,-585.04,0.00016925,2]
[403707085,1769494240574,-32255.0501803,0.00016926,2]
[403707086,1769494240583,-200.0,0.00017,2]
[403707087,1769494240592,-200.0,0.00017,2]
[403707088,1769494240605,-200.0,0.00017,2]
[403707089,1769494240614,-200.0,0.00017,2]
[403707090,1769494240623,-200.0,0.00017,2]
[403707091,1769494240632,-200.0,0.00017,2]
[403707092,1769494240643,-200.0,0.00017,2]
[403707093,1769494240652,-200.0,0.00017,2]
[403707094,1769494240661,-200.0,0.00017,2]
[403707095,1769494240671,-200.0,0.00017,2]
[403707096,1769494240683,-212.06874983,0.00017,2]
[403707097,1769494240691,-475.0,0.00017182,2]
[403707098,1769494240700,-475.0,0.00017182,2]
[403707099,1769494240709,-475.0,0.00017182,2]
[403707100,1769494240717,-475.0,0.00017182,2]
[403707101,1769494240726,-475.0,0.00017182,2]
[403707102,1769494240735,-475.0,0.00017182,2]
[403707103,1769494240744,-475.0,0.00017182,2]
[403707104,1769494240752,-475.0,0.00017182,2]
[403707105,1769494240761,-475.0,0.00017182,2]
[403707106,1769494240770,-1613.0,0.00017206,2]
[403707107,1769494240778,-585.04,0.00017458,2]
[403707108,1769494240787,-324.18375047,0.0001746,2]
[403707109,1769494240796,-500.0,0.00017489,2]
[403707111,1769494240806,-500.0,0.00017633,2]
[403707112,1769494240815,-500.0,0.00017633,2]
[403707113,1769494240823,-585.04,0.00017633,2]
[403707115,1769494240833,-500.0,0.00017653,2]
[403707116,1769494240842,-215.0,0.00018218,2]
[403707117,1769494240851,-160.0,0.00018467,3]
[403707119,1769494240860,-729.0,0.00018548,2]
[403707120,1769494240869,-500.0,0.00018673,2]
[403707121,1769494240880,-284.15615338,0.00018716,3]
[403707122,1769494240889,-500.0,0.00018716,3]
[403707123,1769494240900,-500.0,0.00018716,3]
[403707124,1769494240911,-150.0,0.00018716,3]
[403707125,1769494240921,-150.0,0.00018716,3]
[403707126,1769494240932,-500.0,0.00018716,3]
[403707127,1769494240941,-500.0,0.00018716,3]
[403707128,1769494240950,-500.0,0.00018716,3]
[403707129,1769494240961,-150.0,0.00018716,3]
[403707130,1769494240972,-500.0,0.00018716,3]
[403707131,1769494240983,-729.0,0.0001872,2]
[403707132,1769494240992,-729.0,0.0001872,2]
[403707133,1769494241002,-5000.0,0.00018768,2]
[403707134,1769494241012,-150.17702825,0.00018795,30]
[403707135,1769494241021,-500.0,0.00018853,3]
[403707136,1769494241030,-500.0,0.00018853,3]
[403707137,1769494241039,-150.0,0.00018853,3]
[403707138,1769494241048,-150.0,0.00018853,3]
[403707139,1769494241058,-500.0,0.00018853,3]
[403707140,1769494241068,-500.0,0.00018853,3]
[403707141,1769494241078,-500.0,0.00018853,3]
[403707142,1769494241087,-202.98283622,0.00018853,3]
[403707143,1769494241096,-500.0,0.00018853,3]
[403707144,1769494241105,-168.0,0.00018873,2]
[403707145,1769494241114,-500.0,0.00018898,2]
[403707146,1769494241123,-303.10001603,0.000189,2]
[403707147,1769494241132,-303.10001603,0.000189,2]
[403707148,1769494241142,-729.0,0.00018909,2]
[403707149,1769494241151,-1397.0,0.00018913,2]
[403707150,1769494241160,-150.17702825,0.00018959,30]
[403707151,1769494241170,-168.0,0.00018973,2]
[403707152,1769494241181,-500.0,0.0001899,3]
[403707153,1769494241191,-500.0,0.0001899,3]
[403707154,1769494241200,-182.44592417,0.0001899,3]
[403707155,1769494241210,-200.77708875,0.0001899,3]
[403707156,1769494241219,-500.0,0.0001899,3]
[403707157,1769494241229,-500.0,0.0001899,3]
[403707158,1769494241239,-500.0,0.0001899,3]
[403707159,1769494241249,-500.0,0.0001899,3]
[403707160,1769494241258,-500.0,0.00018997,2]
[403707161,1769494241268,-500.0,0.00018998,2]
[403707162,1769494241277,-585.04,0.00018998,2]
[403707163,1769494241287,-500.0,0.00018999,2]
[403707164,1769494241296,-500.0,0.00018999,2]
[403707165,1769494241306,-500.0,0.00018999,2]
[403707166,1769494241315,-500.0,0.00018999,2]
[403707167,1769494241324,-519.14505241,0.00018999,2]
[403707168,1769494241333,-417.70623859,0.00018999,2]
[403707169,1769494241342,-751.87122945,0.00018999,2]
[403707170,1769494241351,-173.35299095,0.00018999,2]
[403707171,1769494241360,-312.0353837,0.00018999,2]
[403707172,1769494241369,-313.76786603,0.00018999,2]
[403707173,1769494241378,-160.0,0.00019,3]
[403707174,1769494241389,-396.088,0.00019,2]
[403707175,1769494241398,-500.0,0.00019,2]
[403707176,1769494241408,-195.67922461,0.00019,2]
[403707177,1769494241417,-500.0,0.00019,2]
[403707178,1769494241428,-168.0,0.00019011,2]
[403707179,1769494241438,-175.20653296,0.00019041,30]
[403707180,1769494241447,-175.20653296,0.00019041,30]
[403707181,1769494241456,-168.0,0.00019066,2]
[403707182,1769494241466,-303.10001603,0.00019089,2]
[403707183,1769494241475,-303.10001603,0.00019089,2]
[403707184,1769494241483,-150.17702825,0.00019123,30]
[403707185,1769494241492,-500.0,0.00019127,3]
[403707186,1769494241501,-500.0,0.00019127,3]
[403707187,1769494241510,-500.0,0.00019127,3]
[403707188,1769494241520,-500.0,0.00019127,3]
[403707189,1769494241529,-426.79437423,0.00019127,3]
[403707190,1769494241538,-500.0,0.00019127,3]
[403707191,1769494241547,-168.0,0.0001915,2]
[403707192,1769494241556,-1540.91626941,0.00019178,3]
[403707193,1769494241567,-32231.79891237,0.00019178,3]
[403707194,1769494241576,-846.64,0.00019178,2]
[403707195,1769494241585,-1523.95,0.00019178,2]
[403707196,1769494241595,-1977.94,0.00019178,2]
[403707197,1769494241609,-1977.94,0.00019178,2]
[403707198,1769494241618,-160.0,0.00019185,4]
[403707199,1769494241629,-345.33,0.000192,2]
[403707200,1769494241638,-5431.62,0.000192,2]
[403707201,1769494241646,-168.94,0.000192,2]
[403707202,1769494241655,-168.11,0.000192,2]
[403707203,1769494241664,-500.0,0.00019264,3]
[403707204,1769494241674,-500.0,0.00019264,3]
[403707205,1769494241683,-500.0,0.00019264,3]
[403707206,1769494241692,-500.0,0.00019264,3]
[403707207,1769494241701,-500.0,0.00019264,3]
[403707208,1769494241710,-6754.624649,0.00019278,7]
[403707209,1769494241720,-303.10001603,0.00019278,2]
[403707210,1769494241728,-303.10001603,0.00019278,2]
[403707211,1769494241739,-168.0,0.00019285,2]
[403707212,1769494241748,-262.80979939,0.00019288,30]
[403707213,1769494241757,-175.20653296,0.00019288,30]
[403707214,1769494241766,-150.17702825,0.00019288,30]
[403707215,1769494241776,-175.20653296,0.00019288,30]
[403707216,1769494241785,-237.12601545,0.00019315,3]
[403707217,1769494241794,-4304.92756,0.00019315,7]
[403707218,1769494241803,-487.0,0.00019315,2]
[403707219,1769494241812,-487.0,0.00019315,2]
[403707220,1769494241823,-487.0,0.00019315,2]
[403707221,1769494241832,-487.0,0.00019315,2]
[403707222,1769494241841,-487.0,0.00019315,2]
[403707223,1769494241850,-487.0,0.00019315,2]
[403707224,1769494241860,-487.0,0.00019315,2]
[403707225,1769494241871,-487.0,0.00019315,2]
[403707226,1769494241880,-487.0,0.00019315,2]
[403707227,1769494241889,-844.42,0.00019315,2]
[403707228,1769494241899,-729.0,0.0001936,2]
[403707229,1769494241911,-168.0,0.00019361,2]
[403707230,1769494241920,-664.0,0.000194,2]
[403707231,1769494241930,-500.0,0.00019401,3]
[403707232,1769494241939,-500.0,0.00019401,3]
[403707233,1769494241949,-500.0,0.00019401,3]
[403707234,1769494241958,-500.0,0.00019401,3]
[403707235,1769494241969,-500.0,0.00019401,3]
[403707236,1769494241979,-500.0,0.00019401,3]
[403707237,1769494241989,-500.0,0.00019401,3]
[403707238,1769494241997,-201.4653447,0.00019401,3]
[403707239,1769494242006,-150.0,0.00019401,3]
[403707240,1769494242015,-150.0,0.00019401,3]
[403707241,1769494242024,-500.0,0.00019401,3]
[403707242,1769494242033,-500.0,0.00019401,3]
[403707243,1769494242042,-150.0,0.00019401,3]
[403707244,1769494242051,-500.0,0.00019401,3]
[403707245,1769494242060,-150.0,0.00019401,3]
[403707246,1769494242069,-168.0,0.00019432,2]
[403707247,1769494242078,-26216.827087,0.00019432,7]
[403707248,1769494242087,-168.0,0.00019459,2]
[403707249,1769494242096,-8796.589332,0.00019459,7]
[403707250,1769494242105,-362.07535766,0.0001946,2]
[403707251,1769494242114,-168.0,0.00019467,2]
[403707252,1769494242123,-303.10001603,0.00019467,2]
[403707253,1769494242133,-303.10001603,0.00019467,2]
[403707254,1769494242142,-168.0,0.00019478,2]
[403707255,1769494242151,-150.17702825,0.00019479,30]
[403707256,1769494242160,-151.0,0.000195,2]
[403707257,1769494242169,-1000.490761,0.000195,2]
[403707258,1769494242179,-500.0,0.00019538,3]
[403707259,1769494242188,-500.0,0.00019538,3]
[403707260,1769494242199,-500.0,0.00019538,3]
[403707261,1769494242208,-500.0,0.00019538,3]
[403707262,1769494242217,-500.0,0.00019538,3]
[403707263,1769494242228,-500.0,0.00019538,3]
[403707264,1769494242237,-542.45970376,0.00019538,3]
[403707265,1769494242247,-150.0,0.00019538,3]
[403707266,1769494242256,-150.0,0.00019538,3]
[403707267,1769494242266,-500.0,0.00019538,3]
[403707268,1769494242277,-500.0,0.00019538,3]
[403707269,1769494242286,-150.0,0.00019538,3]
[403707270,1769494242294,-500.0,0.00019538,3]
[403707271,1769494242304,-206.35919753,0.00019538,3]
[403707272,1769494242313,-175.20653296,0.00019562,30]
[403707273,1769494242322,-175.20653296,0.00019562,30]
[403707274,1769494242331,-150.17702825,0.00019644,30]
[403707275,1769494242340,-417.19,0.00019655,2]
[403707276,1769494242350,-303.10001603,0.00019656,2]
[403707277,1769494242359,-303.10001603,0.00019656,2]
[403707278,1769494242367,-500.0,0.00019675,3]
[403707279,1769494242378,-500.0,0.00019675,3]
[403707280,1769494242387,-500.0,0.00019675,3]
[403707281,1769494242397,-500.0,0.00019675,3]
[403707282,1769494242406,-500.0,0.00019675,3]
[403707283,1769494242415,-256.61357181,0.00019675,3]
[403707284,1769494242424,-500.0,0.00019675,3]
[403707285,1769494242433,-200.0,0.00019675,3]
[403707286,1769494242442,-200.0,0.00019675,3]
[403707287,1769494242452,-400.0,0.00019675,3]
[403707288,1769494242461,-276.75967829,0.00019675,3]
[403707289,1769494242471,-500.0,0.00019675,3]
[403707290,1769494242480,-4888.223726,0.00019675,7]
[403707291,1769494242489,-179.0,0.00019676,2]
[403707292,1769494242499,-161.0,0.0001968,2]
[403707293,1769494242508,-1676.769921,0.000197,5]
[403707294,1769494242517,-1000.0,0.0001972,5]
[403707295,1769494242526,-1000.0,0.0001974,5]
[403707296,1769494242535,-1000.0,0.0001976,5]
[403707297,1769494242544,-1290.323323,0.0001976,5]
[403707298,1769494242554,-1000.0,0.0001978,5]
[403707299,1769494242563,-1000.0,0.0001978,5]
[403707300,1769494242571,-168.0,0.00019792,2]
[403707301,1769494242580,-1000.0,0.000198,5]
[403707302,1769494242590,-1000.0,0.000198,5]
[403707303,1769494242601,-150.17702825,0.00019808,30]
[403707304,1769494242611,-500.0,0.00019812,3]
[403707305,1769494242620,-500.0,0.00019812,3]
[403707306,1769494242631,-591.76222166,0.00019812,3]
[403707307,1769494242642,-500.0,0.00019812,3]
[403707308,1769494242652,-387.45973716,0.00019812,3]
[403707309,1769494242663,-500.0,0.00019812,3]
[403707310,1769494242673,-500.0,0.00019812,3]
[403707311,1769494242682,-1000.0,0.0001982,5]
[403707312,1769494242692,-1000.0,0.0001982,5]
[403707313,1769494242701,-1000.0,0.0001984,5]
[403707314,1769494242711,-1000.0,0.0001984,5]
[403707315,1769494242721,-454.65002405,0.00019845,4]
[403707316,1769494242730,-454.65002405,0.00019845,4]
[403707317,1769494242740,-1000.0,0.0001986,5]
[403707318,1769494242750,-1000.0,0.0001986,5]
[403707319,1769494242761,-168.0,0.00019879,2]
[403707320,1769494242772,-1000.0,0.0001988,5]
[403707321,1769494242782,-1000.0,0.0001988,5]
[403707322,1769494242791,-585.04,0.00019899,2]
[403707323,1769494242800,-605.21089903,0.000199,2]
[403707324,1769494242808,-1000.0,0.000199,5]
[403707325,1769494242817,-1000.0,0.000199,5]
[403707326,1769494242827,-9442.29733659,0.000199,2]
[403707327,1769494242836,-160.0,0.00019904,5]
[403707328,1769494242845,-179.68652294,0.00019904,5]
[403707329,1769494242854,-1000.0,0.0001992,5]
[403707330,1769494242863,-1000.0,0.0001992,5]
[403707331,1769494242872,-224.38642479,0.0001994,5]
[403707332,1769494242882,-1000.0,0.0001994,5]
[403707333,1769494242890,-1000.0,0.0001994,5]
[403707334,1769494242899,-500.0,0.00019949,3]
[403707335,1769494242910,-500.0,0.00019949,3]
[403707336,1769494242920,-500.0,0.00019949,3]
[403707337,1769494242929,-300.81623099,0.00019949,3]
[403707338,1769494242939,-223.92590858,0.00019949,3]
[403707339,1769494242948,-1000.0,0.0001996,5]
[403707340,1769494242957,-1000.0,0.0001996,5]
[403707341,1769494242966,-1000.0,0.0001998,5]
[403707342,1769494242975,-1000.0,0.0001998,5]
[403707343,1769494242984,-585.04,0.00019987,2]
[403707344,1769494242994,-75177.13419,0.0001999,7]
[403707345,1769494243004,-585.04,0.00019992,2]
[403707346,1769494243013,-585.04,0.00019992,2]
[403707347,1769494243024,-585.04,0.00019992,2]
[403707348,1769494243036,-585.04,0.00019992,2]
[403707349,1769494243047,-585.04,0.00019992,2]
[403707350,1769494243058,-585.04,0.00019999,2]
[403707351,1769494243069,-585.04,0.00019999,2]
[403707352,1769494243079,-585.04,0.00019999,2]
[403707353,1769494243089,-585.04,0.00019999,2]
[403707354,1769494243098,-585.04,0.00019999,2]
[403707355,1769494243109,-585.04,0.00019999,2]
[403707356,1769494243119,-585.04,0.00019999,2]
[403707357,1769494243128,-585.04,0.00019999,2]
[403707358,1769494243137,-585.05681043,0.00019999,2]
[403707359,1769494243146,-47011.19227736,0.0002,2]
[403707360,1769494243155,-186.89,0.0002,7]
[403707361,1769494243164,-17960.2373547,0.0002,2]
[403707362,1769494243175,-150.0,0.0002,2]
[403707364,1769494243184,-13946.21141685,0.0002,2]
[403707366,1769494243193,-14717.42926848,0.0002,2]
[403707368,1769494243202,-254.24557907,0.0002,21]
[403707370,1769494243211,-40754.30243773,0.0002,2]
[403707371,1769494243221,-10121.86053417,0.0002,20]
[403707372,1769494243231,-174568.32361618,0.0002,2]
[403707378,1769494244205,-250.0,0.00014749,2]
[403707379,1769494244216,-250.0,0.00014749,2]
[403707380,1769494244225,-257.99442193,0.00014749,2]
[403707381,1769494244235,-619.00026464,0.0002,2]
[403707382,1769494244246,-1306.50365617,0.0002,2]
[403707383,1769494244591,-157.71,0.00012329,2]
[403707384,1769494244603,-1381.76300136,0.0002,2]
[403707385,1769494244614,-41772.8149807,0.0002,2]
[403707386,1769494244625,-391496.99058234,0.0002,2]
[403707387,1769494244636,-5000.0,0.0002,2]
[403707390,1769494246762,-64483.9454037,0.0002,2]
[403707391,1769494246774,-2814.94207488,0.0002,2]
[403707392,1769494297917,2185.0,0.00030136,120]
[403707393,1769494395258,318.0,0.00030137,120]
[403707401,1769494726847,10000.0,0.00030137,120]
[403707403,1769494872646,403.62,0.00030137,120]
[403707405,1769494902148,-5000.0,7.677e-05,2]
[403707406,1769494905027,-150.0,7.755e-05,2]
[403707407,1769494905062,-531.0,7.882e-05,2]
[403707408,1769494905100,-199.45627787,8.209e-05,2]
[403707409,1769494905135,-150.0,8.353e-05,2]
[403707410,1769494905173,-152.48,9.049e-05,2]
[403707411,1769494905209,-203.31,9.746e-05,2]
[403707412,1769494905245,-235.35840788,0.00010209,2]
[403707413,1769494905282,-254.14,0.00010442,2]
[403707414,1769494905319,-1340.741073,0.00010724,2]
[403707415,1769494905350,-304.96,0.00011138,2]
[403707416,1769494907975,-8228.16265484,0.0001128,2]
[403707417,1769494911121,-5000.0,0.00011167,2]
[403707418,1769494911163,-0.01,0.0001128,2]
[403707420,1769495052151,355.23,0.00030137,120]
[403707421,1769495132995,1020.0,0.0003,120]
[403707422,1769495151132,-182.44755838,7.612e-05,2]
[403707424,1769495240119,-2775.30707635,7.612e-05,2]
[403707425,1769495244090,-983.02230674,7.612e-05,2]
[403707426,1769495301592,-588.48502249,7.612e-05,2]
[403707427,1769495303377,-172.8815005,7.612e-05,2]
[403707428,1769495304729,-297.85653554,7.612e-05,2]
[403707429,1769495304756,-93.34738867,7.689e-05,2]
[403707432,1769495323117,-5000.0,7.612e-05,2]
[403707433,1769495323154,-0.01,8.056e-05,2]
[403707434,1769495323498,-215.48949703,8.056e-05,2]
[403707435,1769495323529,-223.16,8.422e-05,2]
[403707436,1769495323559,-334.75,9.124e-05,2]
[403707437,1769495323590,-446.33,9.826e-05,2]
[403707438,1769495323620,-254.2894065,0.00010056,2]
[403707439,1769495323650,-557.91,0.00010527,2]
[403707440,1769495323683,-669.49,0.00011229,2]
[403707441,1769495323714,-334.36495657,0.00011276,2]
[403707442,1769495323745,-258.50203907,0.00011276,2]
[403707443,1769495323776,-500.0,0.00011276,2]
[403707444,1769495323807,-288.17685237,0.00011276,2]
[403707445,1769495323838,-500.0,0.00011276,2]
[403707446,1769495323868,-335.08449692,0.00011276,2]
[403707447,1769495324205,-164.91550308,0.00011276,2]
[403707448,1769495325840,-621.37001229,0.00011276,2]
[403707449,1769495325879,-8757.26997542,0.00011277,2]
[403707450,1769495326018,-10000.01,0.00011277,2]
[403707451,1769495331923,-150.0,7.689e-05,2]
[403707452,1769495331956,-252.38,8.388e-05,2]
[403707453,1769495331987,-378.57,9.088e-05,2]
[403707454,1769495332019,-504.76,9.787e-05,2]
[403707455,1769495332049,-630.95,0.00010486,2]
[403707456,1769495332150,-6166.69,0.00011277,2]
[403707457,1769495332183,-10000.01,0.00011277,2]
[403707458,1769495350111,-5000.0,0.00011073,2]
[403707459,1769495350132,-20.88852803,0.00011185,2]
[403707460,1769495366071,-4510.26158378,0.00011073,2]
[403707461,1769495372886,-489.73841622,0.00011073,2]
[403707462,1769495372920,-736.25147197,0.00011185,2]
[403707463,1769495372965,-300.0,0.00011276,2]
[403707464,1769495373055,-6948.03022362,0.00011277,2]
[403707465,1769495378947,-31.29190997,0.00011277,2]
[403707466,1769495378977,-300.0,0.00011277,2]
[403707467,1769495379006,-300.0,0.00011277,2]
[403707468,1769495379035,-300.0,0.00011278,2]
[403707469,1769495379064,-300.0,0.00011278,2]
[403707470,1769495379098,-300.0,0.00011278,2]
[403707471,1769495379129,-1200.0,0.00011278,2]
[403707472,1769495379160,-883.33,0.00011884,2]
[403707473,1769495379192,-293.07931597,0.00012056,2]
[403707474,1769495379224,-420.0,0.00012388,2]
[403707475,1769495379261,-144.60754812,0.00012406,2]
[403707476,1769495379426,-1055.39245188,0.00012406,2]
[403707477,1769495419927,-689.86,7.803e-05,2]
[403707478,1769495419958,-1379.72,8.512e-05,2]
[403707479,1769495419991,-2069.57,9.222e-05,2]
[403707480,1769495420085,-1721.71,9.931e-05,2]
[403707481,1769495420141,-1037.72,9.931e-05,2]
[403707482,1769495420188,-3449.29,0.0001064,2]
[403707496,1769495431578,-4139.15,0.0001135,2]
[403707497,1769495431588,-4829.01,0.00012059,2]
[403707498,1769495431597,-3166.7348,0.00012457,2]
[403707499,1769495431609,-1833.2652,0.00012457,2]
[403707500,1769495431619,-596.0,0.00012457,2]
[403707501,1769495431628,-5518.86,0.00012769,2]
[403707502,1769495431637,-300.0,0.00013272,2]
[403707503,1769495431645,-1200.0,0.00013272,2]
[403707504,1769495431655,-500.0,0.00013273,2]
[403707505,1769495431664,-500.0,0.00013273,2]
[403707506,1769495431673,-500.0,0.00013273,2]
[403707507,1769495431682,-500.0,0.00013273,2]
[403707508,1769495431691,-500.0,0.00013273,2]
[403707509,1769495431700,-500.0,0.00013273,2]
[403707510,1769495431709,-500.0,0.00013273,2]
[403707511,1769495431718,-500.0,0.00013273,2]
[403707512,1769495431728,-500.0,0.00013273,2]
[403707514,1769495431737,-504.88506117,0.00013273,2]
[403707516,1769495431746,-500.0,0.00013273,2]
[403707518,1769495431755,-500.0,0.00013273,2]
[403707520,1769495431764,-500.92401321,0.00013273,2]
[403707522,1769495431773,-500.0,0.00013273,2]
[403707524,1769495431782,-500.0,0.00013273,2]
[403707526,1769495431791,-6208.72,0.00013478,2]
[403707528,1769495431800,-417.19,0.00013698,2]
[403707530,1769495431809,-501.22,0.00013698,2]
[403707532,1769495431818,-501.22,0.00013698,2]
[403707534,1769495431827,-501.22,0.00013698,2]
[403707536,1769495431836,-500.0,0.00013698,2]
[403707538,1769495431845,-500.0,0.00013698,2]
[403707540,1769495431854,-1000.0,0.00013699,2]
[403707542,1769495431863,-500.0,0.00013699,2]
[403707543,1769495431872,-500.0,0.00013699,2]
[403707544,1769495431882,-500.0,0.00013699,2]
[403707546,1769495431891,-500.0,0.00013699,2]
[403707548,1769495431900,-500.0,0.00013699,2]
[403707550,1769495431909,-1000.0,0.00013821,2]
[403707552,1769495431918,-1000.0,0.00013821,2]
[403707553,1769495431926,-1000.0,0.00013821,2]
[403707555,1769495431935,-1000.0,0.00013821,2]
[403707557,1769495431944,-396.46192581,0.00013821,2]
[403707558,1769495431953,-1000.0,0.00013821,2]
[403707559,1769495431962,-1000.0,0.00013821,2]
[403707560,1769495431972,-500.0,0.00013921,2]
[403707561,1769495431980,-331.86922543,0.00014056,2]
[403707562,1769495431990,-6898.58,0.00014187,2]
[403707563,1769495432000,-500.0,0.00014187,2]
[403707564,1769495432009,-1000.0,0.00014247,2]
[403707565,1769495432018,-1000.0,0.00014247,2]
[403707566,1769495432028,-1000.0,0.00014247,2]
[403707567,1769495432036,-1000.0,0.00014247,2]
[403707568,1769495432045,-1102.21614882,0.00014247,2]
[403707569,1769495432054,-1500.0,0.00014368,2]
[403707570,1769495432063,-1500.0,0.00014368,2]
[403707571,1769495432072,-1500.0,0.00014368,2]
[403707572,1769495432080,-1500.0,0.00014368,2]
[403707573,1769495432090,-267.44500469,0.00014368,2]
[403707574,1769495432099,-1500.0,0.00014368,2]
[403707575,1769495432108,-500.0,0.00014461,2]
[403707576,1769495432117,-420.0,0.00014551,2]
[403707577,1769495432126,-195.0,0.00014599,2]
[403707578,1769495432135,-1041.66666667,0.0001462,2]
[403707579,1769495432144,-500.0,0.00014735,2]
[403707580,1769495432153,-336.07837269,0.00014795,2]
[403707581,1769495432162,-1500.0,0.00014795,2]